Cogmind - Beta 10.2 @@@ ROGUE MODE // 2020.11.10 @ 22:11:36 // Halloween2020/ForbiddenLore Player: IAMCRAIG Result: Destroyed by G-34 Mercenary with Small Laser Performance ------------- Evolutions (0) 0 Regions Visited (1) 200 Robots Destroyed (5) 25 Value Destroyed (147) 147 Prototype IDs (2) 40 Alien Tech Used (0) 0 Bonus (0) 0 TOTAL SCORE: 412 Bonus ------- None Cogmind --------- Core Integrity 0/250 Matter 284/300 Energy 124/125 System Corruption 4% Temperature Cool (6) Movement Rolling (100) Location -10/Materials Parts ------- > --- POWER (1) -------- Light Ion Engine > --- PROPULSION (2) --- Aluminum Leg Compact Wheel > --- UTILITY (2) ------ Small Storage Unit Sensor Array > --- WEAPON (2) ------- (None) > --- INVENTORY (6) ---- Aluminum Leg Targeting Computer Weapon Shielding Datajack Peak State ------------ > --- POWER ------------ Ion Engine > --- PROPULSION ------- Light Treads Compact Wheel > --- UTILITY ---------- Small Storage Unit > --- WEAPON ----------- EM Pulse Gun Medium Laser > --- INVENTORY -------- Light Treads Aluminum Leg Aluminum Leg Compact Wheel [Rating: 6] Favorites ----------- Power Ion Engine Engine Ion Engine Propulsion Compact Wheel Treads Light Treads Leg Aluminum Leg Wheel Compact Wheel Utility Small Storage Unit Device Sensor Array Storage Small Storage Unit Weapon EM Pulse Gun Energy Gun EM Pulse Gun Build | -11 -10 ------- Run | Scr Mat Slots Evolved . | . . Power . | . . Propulsion . | . . Utility . | . . Weapon . | . . Parts Attached 12 | 6 6 Power 2 | 1 1 Engine 2 | 1 1 Core . | . . Reactor . | . . Propulsion 6 | 2 4 Treads 2 | 1 1 Leg 1 | . 1 Wheel 3 | 1 2 Hover . | . . Flight . | . . Utility 2 | 1 1 Device 1 | . 1 Storage 1 | 1 . Processor . | . . Hackware . | . . Protection . | . . Artifact . | . . Weapon 2 | 2 . Energy Gun 2 | 2 . Energy Cannon . | . . Ballistic Gun . | . . Ballistic Cannon . | . . Launcher . | . . Special Weapon . | . . Impact Weapon . | . . Slashing Weapon . | . . Piercing Weapon . | . . Special Melee Weapon . | . . Unidentified Prototypes . | . . Parts Lost 6 | . 6 Power 1 | . 1 Propulsion 3 | . 3 Utility . | . . Weapon 2 | . 2 Highest Loss Streak 6 | . 6 Average Slot Usage (%) 74 | . 74 Engine 11 | . 11 Treads 12 | . 12 Leg 2 | . 2 Wheel 12 | . 12 Device 4 | . 4 Storage 14 | . 14 Energy Gun 16 | . 16 Naked Turns . | . . Heaviest Build 13 | 13 13 Greatest Support 40 | 16 40 Greatest Overweight (x) . | . . Average Overweight (x) . | . . Largest Inventory Capacity 6 | 6 6 Average Capacity 5 | 5 6 Most Carried 6 | 6 6 Average Carried 5 | 3 5 Final Capacity 6 | 6 6 Final Carried 6 | 6 4 Class Distribution -------------------- 100% | Mutant Dominant Class ---------------- Mutant | -10/Materials Resources | -11 -10 ----------- Run | Scr Mat Matter Collected 260 | 240 20 Remotely . | . . Salvage Created 95 | . 95 Parts 6 | . 6 Haulers Intercepted . | . . Recyclers Shooed . | . . Parts Field Recycled . | . . Retrieved Matter . | . . Parts Self-Destructed . | . . Prevented . | . . Kills | -11 -10 ------- Run | Scr Mat Combat Hostiles Destroyed 5 | . 5 Melee 1 | . 1 Guns 3 | . 3 AOE 1 | . 1 Classes Destroyed 2 | . 2 Swarmer 4 | . 4 Grunt 1 | . 1 Best Kill Streak 3 | . 3 Combat Bots Only 3 | . 3 Max Kills in Single Turn 1 | . 1 Gunslinging . | . . Exploded 1 | . 1 Melee 1 | . 1 Uniques/NPCs Destroyed . | . . Combat | -11 -10 -------- Run | Scr Mat Damage Taken 909 | . 909 Core 260 | . 260 Absorbed by Shields . | . . Core Remaining (%) 100 | 100 . Volleys Fired 13 | . 13 Largest 2 | . 2 Hottest 90 | . 90 Shots Fired 23 | . 23 Gun 23 | . 23 Cannon . | . . Launcher . | . . Special . | . . Kinetic . | . . Thermal 10 | . 10 Explosive . | . . Electromagnetic 13 | . 13 Robot Hit Streak 5 | . 5 Robot Miss Streak 3 | . 3 Penetration Max . | . . Secondary Targets 1 | . 1 Max Gunslinging Chain 1 | . 1 Shots Hit Robots 14 | . 14 Core Hits 9 | . 9 Critical Hits . | . . Critical Kills . | . . Critical Parts Destroyed . | . . Melee Attacks . | . . Impact . | . . Slashing . | . . Piercing . | . . Sneak Attacks . | . . Combat Hostiles . | . . Follow-up Attacks . | . . Damage Inflicted 190 | . 190 Guns 121 | . 121 Cannons . | . . Explosions 56 | . 56 Melee . | . . Ramming 13 | . 13 Kinetic . | . . Thermal 106 | . 106 Explosive . | . . Electromagnetic 71 | . 71 Impact . | . . Slashing . | . . Piercing . | . . Highest Corruption 4 | . 4 Average Corruption 3 | . 3 Corruption Purged . | . . Effects 1 | . 1 Message Errors 1 | . 1 Overload Shots . | . . Overflow Damage . | . . Projectiles . | . . Explosions . | . . Melee . | . . Knockbacks 1 | . 1 Impact 1 | . 1 Kinetic . | . . Secondary . | . . Self-Inflicted Damage 2 | . 2 Shots . | . . Rammed 13 | . 13 Targets Rammed 14 | . 14 Kicked . | . . Crushed 1 | . 1 Highest Temperature 260 | . 260 Average Temperature 107 | . 107 Received Heat Transfer 285 | . 285 Siege Activations . | . . Robots Corrupted . | . . Combat Hostiles . | . . Parts Fried 1 | . 1 Impact Corruptions . | . . Robots Melted . | . . Combat Hostiles . | . . Parts Melted . | . . Heat Transferred 248 | . 248 Parts Sabotaged . | . . Parts Stolen . | . . Parts Stripped . | . . Power Chain Reactions 1 | . 1 Missiles Intercepted . | . . Alert | -11 -10 ------- Run | Scr Mat Peak Influence 163 | . 163 Initial . | . . Average 50 | . 62 Maximum Alert Level . | . . Low Security (%) 100 | 100 100 Level 1 . | . . Level 2 . | . . Level 3 . | . . Level 4 . | . . Level 5 . | . . High Security . | . . Max Security . | . . Squads Dispatched 2 | . 2 Investigation 1 | . 1 Extermination . | . . Reinforcement 1 | . 1 Assault . | . . Garrison . | . . Intercept . | . . Construction Impeded . | . . Haulers Reinforced . | . . Stealth | -11 -10 --------- Run | Scr Mat Distress Signals . | . . Communications Jammed . | . . Distress Signals . | . . Times Spotted 16 | . 16 Peak Tracking Total 8 | . 8 Tactical Retreats . | . . Traps | -11 -10 ------- Run | Scr Mat Traps Triggered . | . . Indirectly . | . . Trap Hack Attempts . | . . Triggered . | . . Disarmed . | . . Reprogrammed . | . . Reused . | . . Traps Extracted . | . . Installed . | . . Triggered . | . . Machines | -11 -10 ---------- Run | Scr Mat Machines Disabled . | . . Max in Single Turn . | . . Machines Sabotaged 1 | . 1 Garrisons Compromised . | . . Overloaded Fab Kills . | . . Fab Network Shutdowns . | . . Hacking | -11 -10 --------- Run | Scr Mat Machines Accessed 3 | . 3 Terminals 1 | . 1 Fabricators . | . . Repair Stations . | . . Recycling Units 2 | . 2 Scanalyzers . | . . Garrison Access . | . . Total Hacks 9 | . 9 Successful 6 | . 6 Failed 3 | . 3 Catastrophic 1 | . 1 Database Lockouts . | . . Manual 3 | . 3 Terminals 3 | . 3 Fabricators . | . . Repair Stations . | . . Recycling Units 6 | . 6 Scanalyzers . | . . Garrison Access . | . . Terminal Hacks 1 | . 1 Prototype ID Bank 1 | . 1 Fabricator Hacks . | . . Repair Station Hacks . | . . Recycling Unit Hacks 2 | . 2 Report Inventory 2 | . 2 Scanalyzer . | . . Garrison Access Hacks . | . . Unauthorized Hacks 3 | . 3 Terminals 1 | . 1 Sabotage 1 | . 1 Fabricators . | . . Repair Stations . | . . Recycling Units 2 | . 2 Reject 1 | . 1 Recyclers 1 | . 1 Scanalyzers . | . . Garrison Access . | . . Data Cores Recovered . | . . Used . | . . Hacking Detections 3 | . 3 Full Trace Events 1 | . 1 Feedback Events . | . . Feedback Blocked . | . . Robot Schematics Acquired . | . . Robots Built . | . . Matter . | . . Time . | . . Total Robot Build Rating . | . . Part Schematics Acquired . | . . Parts Built . | . . Matter . | . . Time . | . . Total Part Build Rating . | . . Parts Repaired . | . . Time . | . . Parts Recycled . | . . Recycled Matter . | . . Retrieved Matter . | . . Retrieved Components . | . . Parts Scanalyzed . | . . Part Schematics Acquired . | . . Parts Damaged . | . . Bothacking | -11 -10 ------------ Run | Scr Mat Used RIF Installer . | . . Robots Hacked . | . . Non-combat . | . . Combat . | . . Robot Hacks Applied . | . . Relay Couplers Released . | . . Robots Rewired . | . . Allies Hacked . | . . Hacks Repelled . | . . Allies | -11 -10 -------- Run | Scr Mat Total Allies . | . . Largest Group . | . . Highest-Rated Group . | . . Highest-Rated Ally . | . . Total Orders . | . . Ally Attacks . | . . Total Damage . | . . Kills . | . . Allies Corrupted . | . . Allies Melted . | . . Intel | -11 -10 ------- Run | Scr Mat Robot Analysis Total . | . . Derelict Logs Recovered . | . . Drone Launches . | . . Drone Recoveries . | . . Exploration | -11 -10 ------------- Run | Scr Mat Turns Passed 292 | 56 236 Spaces Moved 201 | 41 160 Core 1 | 1 . Treads 5 | . 5 Legs 3 | . 3 Wheels 192 | 40 152 Hover . | . . Flight . | . . Fastest Speed 50 | 50 100 Average Speed 101 | 98 102 Slowest Speed 160 | 100 160 Overloaded Moves . | . . Propulsion Burnouts . | . . Robots Hopped . | . . Cave-ins Triggered . | . . Exploration Rate (%) 25 | 4 46 Regions Visited 1 Branch Regions . Pre-discovered Areas . | . . Known Exits Taken . | . . Unknown Exits Taken 1 | 1 . Scrap Searched . | . . Spaces Dug . | . . Terrain Destroyed 2 | . 2 Melee . | . . Projectile . | . . AOE 2 | . 2 Terrain Rammed . | . . Walls Destroyed . | . . Machines Disabled . | . . Actions | -11 -10 --------- Run | Scr Mat Total 256 | 54 202 Wait 4 | . 4 Move 200 | 40 160 Hop . | . . Pick Up 11 | 8 3 Fast Attach 6 | 4 2 Attach 5 | 2 3 Detach . | . . Swap 1 | . 1 Drop 2 | . 2 Fire 13 | . 13 Melee . | . . Ram . | . . Kick 3 | . 3 Crush 11 | . 11 Escape Stasis . | . . Rewire . | . . Trap . | . . Miscellaneous . | . . Route ------- -11/Scrapyard -10/Materials (discovered 2 exits: [*Mat] / [*Min]) History --------- Turn | Location | Event 15 | -11/Scrapyard | Discovered new exit (range 15) 57 | -11/Scrapyard | Entered Materials 94 | -10/Materials | Discovered new exit (range 16) 234 | -10/Materials | Core integrity fell below 50% 258 | -10/Materials | Core integrity fell below 20% 270 | -10/Materials | Discovered new exit (range 15) 285 | -10/Materials | Lost 6 parts (1p3n2w) 293 | -10/Materials | Destroyed by G-34 Mercenary with Small Laser Last Messages --------------- 00248_ Com. Wheel destroyed. 00249_ K-01 Serf collects debris. 00251_ Acquired Lgt. Ion Engine. 00254_ Lgt. Treads destroyed. 00258_ K-01 Serf collects debris. 00270_ Slammed into K-01 Serf. 00270_ Destabilizing: System corrupted (+2). 00270_ EXIT=FOUND 00271_ Slammed into K-01 Serf. 00271_ Destabilizing: System corrupted (+2). 00277_ RE|5AY YB8U 3HZHS 00291_ U-05 Engineer builds a Wall. 00292_ U-05 Engineer lays Concrete. 00292_ K-01 Serf cleans the Neutrino Reactor. 00293_ U-05 Engineer builds a Wall. Map ----- +----------------------------------------------------+ | """"" ?????????????????? #??? | | """ ????????????????? < #??? | | r #?????????????????# #??? | | #?????????????????# #??? | | """ #????????????????? #??? | | """"" #????????????????? #??? | | """"" #????????????????? #??? | | / """"" #???????########### #??? | | *[ """ #???????# T ## #??? | | #???????# ## #??? | | #???????#! ## #??? | | #???????# ## #??? | | #???? # ## #??? | | ######## #???# # """"" / #??? | | #??????# #???# # """"" ### ##??? | | #??????# #???# # """"" #?# #???? | | #??????# #???# # gg #?# #???? | | #??????# #???# #####s###### #???? | | ??????# #???# ## #???? | | ??????# #???# k ## #???? | | |?????# #???# """ g ## #???? | | < "?????# #???# """ ####+##/####? | | |?????# #???# """ #?# #? | | "?????# #???# #?# """"" #? | | ?????# %%##### ### """"" #? | | #??????# @ #=""""" #? | | ?????? # % g +%* #? | | ????????? # %* #"" = #? | | ???????? ?# w######+###;; #"T #? | | ??????? ?# ## % ; #"" #? | | ???????#??# ## " # # #? | | ######## ## """ " u ##########? | | ## "Y # #?????????? | | ## """ u #?????????? | | """"""" r""## #?????????? | | ? """"""" Y"############ #?????????? | | ????"""""" ""#?????????? #?????????? | | ????"""""" #??????????# #?????????? | | ????"""""" #??????????# #?????????? | | ???? #??????????# #?????????? | | ??? ?????????# #?????????? | | ?? """"""" ###????????? ??????????? | | ???""""""" #????????????????????????? | | ???""""""" #????????????????????????? | | ???????""" #????????????????????????? | | ?????????" #????????????????????????? | | ????????? ????????????????????????? | | ????????? ????????????????????????? | | ????????? ???????????????????????? | | ????????? #####???????????????????????? | +----------------------------------------------------+ Best States ------------- Heat Dissipation 25 Energy Generation 10 Energy Capacity 250 Matter Stores 300 Matter Capacity 300 Sight Range 16 Robot Scan Range 10 Terrain Scan Density 10 Evasion (%) 40 Recoil Reduction 2 Item Schematics ----------------- None Robot Schematics ------------------ None Fabricated ------------ Nothing Alien Tech Used ----------------- None Achievements -------------- None Challenges ------------ None Game ------ Seed LobotomyGuidedRailgun Manual? 0 Play Time 00:07:28 Cumulative 196.7 hours Start 2020.11.10 @ 22:03:16 End 2020.11.10 @ 22:11:36 Sessions 1 Manual Loads 0 Difficulty Rogue Special Mode Halloween2020/ForbiddenLore Game No. 74 Rogue 74 Adventurer 0 Explorer 0 Win Type - Total 2 Types 1/0/1/0/0/0/0/0/0 Lore% 65 Gallery% 76 Achievement% 67 Wizard Run 0 Options --------- ASCII 1 Keyboard 1 Movement Numpad Keybinds 0 Fullscreen 1 Font 16/SmallcapsGlow Map View 75x55 Tactical HUD 1 Map Filters NONE Filters NONE Steam 1 RUN: bfaff249-7e08-406e-b556-abb9f2e9aaa1